[Event "Titled Tuesday Blitz April 18 Early 2023"]
[White "Malek, Jan"]
[Black "Kubatko, Ivan"]
[WhiteFideId "21864080"]
[BlackFideId "24111473"]
[WhiteElo "2255"]
[BlackElo "2285"]
[Result "1-0"]
[Round "05"]
[TimeControl "180+2"]
[Date "2023.04.18"]
[WhiteClock "0:00:13"]
[BlackClock "0:00:01"]

1. e4 {[%clk 0:02:15]}  d5 {[%clk 0:02:57]} 2. exd5 {[%clk 0:02:12]}  Qxd5 {[%clk 0:02:58]} 3. c3 {[%clk 0:02:06]}  Nf6 {[%clk 0:02:50]} 4. d4 {[%clk 0:02:07]}  Nc6 {[%clk 0:02:48]} 5. Nf3 {[%clk 0:02:05]}  Bg4 {[%clk 0:02:48]} 6. Be2 {[%clk 0:02:05]}  O-O-O {[%clk 0:02:48]} 7. h3 {[%clk 0:02:04]}  Bf5 {[%clk 0:02:05]} 8. Be3 {[%clk 0:02:02]}  e6 {[%clk 0:01:53]} 9. Nbd2 {[%clk 0:01:57]}  Kb8 {[%clk 0:01:50]} 10. Qb3 {[%clk 0:01:51]}  Be7 {[%clk 0:01:44]} 11. Bc4 {[%clk 0:01:43]}  Qd6 {[%clk 0:01:43]} 12. Bb5 {[%clk 0:01:39]}  Ne4 {[%clk 0:01:22]} 13. Nc4 {[%clk 0:01:24]}  Qd5 {[%clk 0:01:16]} 14. Bxc6 {[%clk 0:01:07]}  Qxc6 {[%clk 0:01:13]} 15. Nfe5 {[%clk 0:01:08]}  Qe8 {[%clk 0:01:12]} 16. Na5 {[%clk 0:01:07]}  Nd6 {[%clk 0:00:58]} 17. Nec6+ {[%clk 0:00:55]}  Ka8 {[%clk 0:00:54]} 18. Nxd8 {[%clk 0:00:55]}  Qxd8 {[%clk 0:00:38]} 19. Bf4 {[%clk 0:00:54]}  Qc8 {[%clk 0:00:29]} 20. O-O {[%clk 0:00:47]}  g5 {[%clk 0:00:24]} 21. Bh2 {[%clk 0:00:38]}  h5 {[%clk 0:00:23]} 22. Rfe1 {[%clk 0:00:32]}  g4 {[%clk 0:00:22]} 23. c4 {[%clk 0:00:27]}  gxh3 {[%clk 0:00:21]} 24. c5 {[%clk 0:00:27]}  Ne4 {[%clk 0:00:19]} 25. c6 {[%clk 0:00:20]}  b6 {[%clk 0:00:18]} 26. Nc4 {[%clk 0:00:20]}  hxg2 {[%clk 0:00:16]} 27. Ne3 {[%clk 0:00:20]}  Bg6 {[%clk 0:00:16]} 28. a4 {[%clk 0:00:18]}  a5 {[%clk 0:00:15]} 29. Nc4 {[%clk 0:00:17]}  Qa6 {[%clk 0:00:07]} 30. Bxc7 {[%clk 0:00:16]}  Bd8 {[%clk 0:00:03]} 31. Nxb6+ {[%clk 0:00:15]}  Ka7 {[%clk 0:00:04]} 32. Nc8+ {[%clk 0:00:12]}  Qxc8 {[%clk 0:00:03]} 33. Qb6+ {[%clk 0:00:12]}  Ka8 {[%clk 0:00:01]} 34. Qxa5+ {[%clk 0:00:13]} 1-0


[Site "https://www.chess.com"]

[Event "Titled Tuesday Blitz April 18 Early 2023"]
[White "Berezin, Viktor"]
[Black "Sargissyan, Sargis"]
[WhiteFideId "14107872"]
[BlackFideId "13303210"]
[WhiteElo "2310"]
[BlackElo "2109"]
[Result "1-0"]
[Round "05"]
[TimeControl "180+2"]
[Date "2023.04.18"]
[WhiteClock "0:00:17"]
[BlackClock "0:00:02"]

1. d4 {[%clk 0:02:53]}  Nf6 {[%clk 0:02:58]} 2. c4 {[%clk 0:02:51]}  g6 {[%clk 0:02:59]} 3. Nf3 {[%clk 0:02:50]}  Bg7 {[%clk 0:02:58]} 4. g3 {[%clk 0:02:50]}  O-O {[%clk 0:02:59]} 5. Bg2 {[%clk 0:02:51]}  c6 {[%clk 0:02:59]} 6. O-O {[%clk 0:02:51]}  d5 {[%clk 0:02:59]} 7. cxd5 {[%clk 0:02:51]}  cxd5 {[%clk 0:02:59]} 8. Nc3 {[%clk 0:02:51]}  Ne4 {[%clk 0:02:50]} 9. Qb3 {[%clk 0:02:50]}  Nc6 {[%clk 0:02:37]} 10. e3 {[%clk 0:02:43]}  Nxc3 {[%clk 0:02:33]} 11. bxc3 {[%clk 0:02:43]}  Na5 {[%clk 0:02:29]} 12. Qb4 {[%clk 0:02:35]}  Nc4 {[%clk 0:02:27]} 13. Nd2 {[%clk 0:02:34]}  Nxd2 {[%clk 0:01:52]} 14. Bxd2 {[%clk 0:02:35]}  e6 {[%clk 0:01:42]} 15. c4 {[%clk 0:02:31]}  dxc4 {[%clk 0:01:14]} 16. Qxc4 {[%clk 0:02:32]}  e5 {[%clk 0:01:14]} 17. Bb4 {[%clk 0:02:17]}  Re8 {[%clk 0:01:12]} 18. d5 {[%clk 0:02:17]}  b6 {[%clk 0:00:59]} 19. Rac1 {[%clk 0:02:07]}  Bd7 {[%clk 0:00:54]} 20. Qa6 {[%clk 0:02:01]}  Bc8 {[%clk 0:00:47]} 21. Qa3 {[%clk 0:01:52]}  Bb7 {[%clk 0:00:46]} 22. Rfd1 {[%clk 0:01:50]}  a5 {[%clk 0:00:43]} 23. Bd6 {[%clk 0:01:42]}  Bf8 {[%clk 0:00:40]} 24. Bxf8 {[%clk 0:01:41]}  Rxf8 {[%clk 0:00:41]} 25. d6 {[%clk 0:01:40]}  Bxg2 {[%clk 0:00:37]} 26. Kxg2 {[%clk 0:01:41]}  Rc8 {[%clk 0:00:30]} 27. Rxc8 {[%clk 0:01:35]}  Qxc8 {[%clk 0:00:30]} 28. Qd3 {[%clk 0:01:31]}  Qc6+ {[%clk 0:00:24]} 29. f3 {[%clk 0:01:27]}  Rd8 {[%clk 0:00:21]} 30. h4 {[%clk 0:01:26]}  h5 {[%clk 0:00:19]} 31. e4 {[%clk 0:01:24]}  Rd7 {[%clk 0:00:19]} 32. Rd2 {[%clk 0:01:19]}  b5 {[%clk 0:00:18]} 33. g4 {[%clk 0:01:10]}  hxg4 {[%clk 0:00:18]} 34. fxg4 {[%clk 0:01:11]}  b4 {[%clk 0:00:18]} 35. h5 {[%clk 0:01:10]}  Qc3 {[%clk 0:00:18]} 36. Qd5 {[%clk 0:01:09]}  Kg7 {[%clk 0:00:14]} 37. Rf2 {[%clk 0:00:54]}  Qd4 {[%clk 0:00:13]} 38. Qxd4 {[%clk 0:00:39]}  exd4 {[%clk 0:00:13]} 39. e5 {[%clk 0:00:40]}  a4 {[%clk 0:00:13]} 40. Kf3 {[%clk 0:00:39]}  b3 {[%clk 0:00:13]} 41. axb3 {[%clk 0:00:39]}  axb3 {[%clk 0:00:13]} 42. Ke4 {[%clk 0:00:40]}  f6 {[%clk 0:00:06]} 43. Kxd4 {[%clk 0:00:31]}  fxe5+ {[%clk 0:00:05]} 44. Kxe5 {[%clk 0:00:32]}  gxh5 {[%clk 0:00:04]} 45. gxh5 {[%clk 0:00:32]}  Rb7 {[%clk 0:00:05]} 46. Rb2 {[%clk 0:00:29]}  Rb5+ {[%clk 0:00:01]} 47. Ke6 {[%clk 0:00:28]}  Rb4 {[%clk 0:00:01]} 48. d7 {[%clk 0:00:28]}  Rd4 {[%clk 0:00:02]} 49. Ke7 {[%clk 0:00:28]}  Re4+ {[%clk 0:00:02]} 50. Kd6 {[%clk 0:00:28]}  Rd4+ {[%clk 0:00:02]} 51. Ke6 {[%clk 0:00:28]}  Rd1 {[%clk 0:00:02]} 52. Rxb3 {[%clk 0:00:26]}  Re1+ {[%clk 0:00:01]} 53. Kd6 {[%clk 0:00:26]}  Rd1+ {[%clk 0:00:02]} 54. Kc7 {[%clk 0:00:26]}  Rc1+ {[%clk 0:00:02]} 55. Kb7 {[%clk 0:00:26]}  Rd1 {[%clk 0:00:02]} 56. Kc8 {[%clk 0:00:22]}  Rc1+ {[%clk 0:00:02]} 57. Kd8 {[%clk 0:00:22]}  Rd1 {[%clk 0:00:02]} 58. Rg3+ {[%clk 0:00:21]}  Kh7 {[%clk 0:00:02]} 59. Rg5 {[%clk 0:00:19]}  Re1 {[%clk 0:00:02]} 60. Rd5 {[%clk 0:00:17]} 1-0


[Site "https://www.chess.com"]

[Event "Titled Tuesday Blitz April 18 Early 2023"]
[White "Bodnaruk, Anastasia"]
[Black "Jimenez Jimenez, Leandro"]
[WhiteFideId "4181751"]
[BlackFideId "6415253"]
[WhiteElo "2310"]
[BlackElo "2263"]
[Result "1-0"]
[Round "05"]
[TimeControl "180+2"]
[Date "2023.04.18"]
[WhiteClock "0:01:11"]
[BlackClock "0:00:13"]

1. e4 {[%clk 0:03:00]}  e5 {[%clk 0:01:00]} 2. Nf3 {[%clk 0:02:58]}  Nc6 {[%clk 0:01:00]} 3. Bc4 {[%clk 0:02:58]}  Bc5 {[%clk 0:01:00]} 4. d3 {[%clk 0:02:58]}  a6 {[%clk 0:01:00]} 5. c3 {[%clk 0:02:52]}  d6 {[%clk 0:01:00]} 6. O-O {[%clk 0:02:51]}  Nf6 {[%clk 0:01:00]} 7. Bb3 {[%clk 0:02:44]}  Ba7 {[%clk 0:01:00]} 8. Be3 {[%clk 0:02:40]}  O-O {[%clk 0:00:56]} 9. Nbd2 {[%clk 0:02:38]}  Ne7 {[%clk 0:00:52]} 10. Bxa7 {[%clk 0:02:35]}  Rxa7 {[%clk 0:00:52]} 11. d4 {[%clk 0:02:36]}  Ng6 {[%clk 0:00:52]} 12. Re1 {[%clk 0:02:33]}  Ra8 {[%clk 0:00:46]} 13. Nf1 {[%clk 0:02:33]}  Qe7 {[%clk 0:00:45]} 14. Ng3 {[%clk 0:02:32]}  Re8 {[%clk 0:00:45]} 15. Nf5 {[%clk 0:02:31]}  Qf8 {[%clk 0:00:45]} 16. Qc2 {[%clk 0:02:22]}  h6 {[%clk 0:00:40]} 17. Rad1 {[%clk 0:02:20]}  Nf4 {[%clk 0:00:39]} 18. g3 {[%clk 0:02:15]}  Nh3+ {[%clk 0:00:35]} 19. Kg2 {[%clk 0:02:16]}  Ng5 {[%clk 0:00:35]} 20. Nxg5 {[%clk 0:02:15]}  hxg5 {[%clk 0:00:35]} 21. f3 {[%clk 0:02:13]}  g6 {[%clk 0:00:24]} 22. Ne3 {[%clk 0:02:08]}  Kg7 {[%clk 0:00:23]} 23. Rh1 {[%clk 0:02:02]}  Qe7 {[%clk 0:00:20]} 24. dxe5 {[%clk 0:01:56]}  Qxe5 {[%clk 0:00:19]} 25. Nc4 {[%clk 0:01:53]}  Qe7 {[%clk 0:00:19]} 26. Rhe1 {[%clk 0:01:52]}  g4 {[%clk 0:00:19]} 27. f4 {[%clk 0:01:40]}  Nxe4 {[%clk 0:00:18]} 28. Nd2 {[%clk 0:01:40]}  f5 {[%clk 0:00:18]} 29. Bd5 {[%clk 0:01:36]}  c6 {[%clk 0:00:16]} 30. Bxe4 {[%clk 0:01:30]}  fxe4 {[%clk 0:00:17]} 31. Rxe4 {[%clk 0:01:31]}  Qf7 {[%clk 0:00:14]} 32. Rxe8 {[%clk 0:01:18]}  Qxe8 {[%clk 0:00:15]} 33. Kf2 {[%clk 0:01:16]}  Bf5 {[%clk 0:00:15]} 34. Qb3 {[%clk 0:01:15]}  Qe7 {[%clk 0:00:15]} 35. Re1 {[%clk 0:01:15]}  Qd7 {[%clk 0:00:14]} 36. Qc4 {[%clk 0:01:12]}  Rh8 {[%clk 0:00:13]} 37. Qd4+ {[%clk 0:01:11]}  Kf7 {[%clk 0:00:13]} 38. Qxh8 {[%clk 0:01:11]} 1-0


[Site "https://www.chess.com"]

[Event "Titled Tuesday Blitz April 18 Early 2023"]
[White "Ozates, Tuna"]
[Black "Andrews, Todd"]
[WhiteFideId "6354521"]
[BlackFideId "2012456"]
[WhiteElo "2151"]
[BlackElo "2430"]
[Result "1-0"]
[Round "05"]
[TimeControl "180+2"]
[Date "2023.04.18"]
[WhiteClock "0:00:15"]
[BlackClock "0:00:01"]

1. Nc3 {[%clk 0:02:54]}  Nf6 {[%clk 0:02:59]} 2. e4 {[%clk 0:02:53]}  e6 {[%clk 0:02:56]} 3. e5 {[%clk 0:02:52]}  Nd5 {[%clk 0:02:55]} 4. Nf3 {[%clk 0:02:50]}  d6 {[%clk 0:02:49]} 5. Nxd5 {[%clk 0:02:44]}  exd5 {[%clk 0:02:49]} 6. d4 {[%clk 0:02:41]}  Be7 {[%clk 0:02:46]} 7. Bd3 {[%clk 0:02:41]}  Bg4 {[%clk 0:02:45]} 8. h3 {[%clk 0:02:41]}  Bh5 {[%clk 0:02:45]} 9. Bf4 {[%clk 0:02:40]}  Nc6 {[%clk 0:02:39]} 10. c3 {[%clk 0:02:38]}  dxe5 {[%clk 0:02:37]} 11. dxe5 {[%clk 0:02:38]}  Qd7 {[%clk 0:02:34]} 12. g4 {[%clk 0:02:37]}  Bg6 {[%clk 0:02:34]} 13. Bb5 {[%clk 0:02:38]}  Be4 {[%clk 0:02:30]} 14. Rg1 {[%clk 0:02:38]}  a6 {[%clk 0:02:26]} 15. Ba4 {[%clk 0:02:38]}  b5 {[%clk 0:02:20]} 16. Bc2 {[%clk 0:02:37]}  Bxc2 {[%clk 0:02:10]} 17. Qxc2 {[%clk 0:02:38]}  h5 {[%clk 0:02:09]} 18. Qf5 {[%clk 0:02:25]}  hxg4 {[%clk 0:02:04]} 19. hxg4 {[%clk 0:02:25]}  g6 {[%clk 0:01:54]} 20. Qxd7+ {[%clk 0:02:16]}  Kxd7 {[%clk 0:01:54]} 21. O-O-O {[%clk 0:02:17]}  Ke6 {[%clk 0:01:54]} 22. Rge1 {[%clk 0:02:14]}  Rh3 {[%clk 0:01:49]} 23. Bg3 {[%clk 0:02:14]}  Rd8 {[%clk 0:01:40]} 24. Ng1 {[%clk 0:02:13]}  Rh1 {[%clk 0:01:36]} 25. Ne2 {[%clk 0:02:13]}  Rxe1 {[%clk 0:01:30]} 26. Rxe1 {[%clk 0:02:13]}  g5 {[%clk 0:01:24]} 27. f4 {[%clk 0:02:11]}  f5 {[%clk 0:01:06]} 28. exf6 {[%clk 0:02:00]}  Kxf6 {[%clk 0:01:07]} 29. fxg5+ {[%clk 0:01:44]}  Kxg5 {[%clk 0:01:06]} 30. Nd4 {[%clk 0:01:45]}  Nxd4 {[%clk 0:01:03]} 31. Rxe7 {[%clk 0:01:44]}  Nf3 {[%clk 0:00:50]} 32. Bxc7 {[%clk 0:01:41]}  Rg8 {[%clk 0:00:45]} 33. Re6 {[%clk 0:01:37]}  Kxg4 {[%clk 0:00:43]} 34. Rxa6 {[%clk 0:01:36]}  d4 {[%clk 0:00:36]} 35. Ba5 {[%clk 0:01:24]}  d3 {[%clk 0:00:34]} 36. Rd6 {[%clk 0:01:24]}  d2+ {[%clk 0:00:33]} 37. Kc2 {[%clk 0:01:24]}  Ra8 {[%clk 0:00:24]} 38. b4 {[%clk 0:01:17]}  Re8 {[%clk 0:00:23]} 39. c4 {[%clk 0:00:39]}  bxc4 {[%clk 0:00:22]} 40. b5 {[%clk 0:00:39]}  Ra8 {[%clk 0:00:21]} 41. Ra6 {[%clk 0:00:38]}  Re8 {[%clk 0:00:15]} 42. Bxd2 {[%clk 0:00:31]}  Nd4+ {[%clk 0:00:13]} 43. Kc3 {[%clk 0:00:30]}  Nxb5+ {[%clk 0:00:11]} 44. Kxc4 {[%clk 0:00:31]}  Re2 {[%clk 0:00:08]} 45. Kxb5 {[%clk 0:00:27]}  Rxd2 {[%clk 0:00:07]} 46. a4 {[%clk 0:00:26]}  Kf5 {[%clk 0:00:07]} 47. Ra8 {[%clk 0:00:18]}  Rb2+ {[%clk 0:00:06]} 48. Kc5 {[%clk 0:00:16]}  Rc2+ {[%clk 0:00:05]} 49. Kd5 {[%clk 0:00:17]}  Rd2+ {[%clk 0:00:04]} 50. Kc4 {[%clk 0:00:17]}  Rb2 {[%clk 0:00:03]} 51. Re8 {[%clk 0:00:17]}  Ra2 {[%clk 0:00:02]} 52. Kb5 {[%clk 0:00:17]}  Kf6 {[%clk 0:00:01]} 53. a5 {[%clk 0:00:16]}  Kf7 {[%clk 0:00:01]} 54. Re4 {[%clk 0:00:15]} 1-0


[Site "https://www.chess.com"]

[Event "Titled Tuesday Blitz April 18 Early 2023"]
[White "Girsh, Daniel"]
[Black "djokovic74"]
[WhiteFideId "30949190"]
[WhiteElo "2075"]
[BlackElo "2580"]
[Result "1-0"]
[Round "05"]
[TimeControl "180+2"]
[Date "2023.04.18"]
[WhiteClock "0:00:17"]
[BlackClock "0:00:01"]

1. e4 {[%clk 0:03:00]}  e5 {[%clk 0:03:00]} 2. Nf3 {[%clk 0:03:00]}  Nc6 {[%clk 0:03:00]} 3. Bb5 {[%clk 0:02:58]}  a6 {[%clk 0:02:59]} 4. Ba4 {[%clk 0:02:59]}  Nf6 {[%clk 0:02:59]} 5. O-O {[%clk 0:02:59]}  b5 {[%clk 0:02:58]} 6. Bb3 {[%clk 0:02:59]}  Be7 {[%clk 0:02:58]} 7. Re1 {[%clk 0:02:59]}  O-O {[%clk 0:02:56]} 8. a4 {[%clk 0:02:58]}  Bb7 {[%clk 0:02:53]} 9. d3 {[%clk 0:02:56]}  d6 {[%clk 0:02:48]} 10. c3 {[%clk 0:02:55]}  Na5 {[%clk 0:02:29]} 11. Bc2 {[%clk 0:02:53]}  c5 {[%clk 0:02:29]} 12. Nbd2 {[%clk 0:02:51]}  Nc6 {[%clk 0:02:27]} 13. Nf1 {[%clk 0:02:48]}  Qc7 {[%clk 0:02:21]} 14. Ng3 {[%clk 0:02:47]}  g6 {[%clk 0:02:16]} 15. Bh6 {[%clk 0:02:45]}  Rfe8 {[%clk 0:02:16]} 16. h3 {[%clk 0:02:40]}  Bf8 {[%clk 0:02:15]} 17. Qd2 {[%clk 0:02:38]}  Qe7 {[%clk 0:01:58]} 18. Nh2 {[%clk 0:02:22]}  Bxh6 {[%clk 0:01:45]} 19. Qxh6 {[%clk 0:02:20]}  Rad8 {[%clk 0:01:37]} 20. axb5 {[%clk 0:02:12]}  axb5 {[%clk 0:01:37]} 21. Bb3 {[%clk 0:02:11]}  Ra8 {[%clk 0:01:16]} 22. Rxa8 {[%clk 0:02:06]}  Rxa8 {[%clk 0:01:17]} 23. Ng4 {[%clk 0:02:02]}  Nxg4 {[%clk 0:01:17]} 24. hxg4 {[%clk 0:02:02]}  Na5 {[%clk 0:01:17]} 25. Bc2 {[%clk 0:01:53]}  Qf8 {[%clk 0:01:10]} 26. Qh4 {[%clk 0:01:46]}  Kg7 {[%clk 0:01:02]} 27. Re3 {[%clk 0:01:42]}  f6 {[%clk 0:00:44]} 28. Rf3 {[%clk 0:01:28]}  h6 {[%clk 0:00:43]} 29. Nf1 {[%clk 0:01:16]}  c4 {[%clk 0:00:34]} 30. d4 {[%clk 0:01:14]}  Nb3 {[%clk 0:00:33]} 31. Rh3 {[%clk 0:01:11]}  Kh7 {[%clk 0:00:20]} 32. Rf3 {[%clk 0:01:03]}  Kg7 {[%clk 0:00:16]} 33. Rh3 {[%clk 0:01:03]}  Kg8 {[%clk 0:00:08]} 34. dxe5 {[%clk 0:01:01]}  dxe5 {[%clk 0:00:08]} 35. Ne3 {[%clk 0:00:56]}  Ra1+ {[%clk 0:00:07]} 36. Kh2 {[%clk 0:00:57]}  Nd2 {[%clk 0:00:04]} 37. f3 {[%clk 0:00:21]}  Kh7 {[%clk 0:00:03]} 38. Nd5 {[%clk 0:00:19]}  Bxd5 {[%clk 0:00:02]} 39. exd5 {[%clk 0:00:19]}  Nf1+ {[%clk 0:00:03]} 40. Kg1 {[%clk 0:00:19]}  Ne3+ {[%clk 0:00:04]} 41. Kf2 {[%clk 0:00:20]}  Nxc2 {[%clk 0:00:04]} 42. g5 {[%clk 0:00:20]}  fxg5 {[%clk 0:00:03]} 43. Qxg5 {[%clk 0:00:20]}  Qg7 {[%clk 0:00:01]} 44. d6 {[%clk 0:00:17]}  Rd1 {[%clk 0:00:01]} 45. Qd8 {[%clk 0:00:17]} 1-0


[Site "https://www.chess.com"]

[Event "Titled Tuesday Blitz April 18 Early 2023"]
[White "Lenaerts, Lennert"]
[Black "Mrudul Dehankar"]
[WhiteFideId "211435"]
[BlackFideId "25096990"]
[WhiteElo "2334"]
[BlackElo "2139"]
[Result "1-0"]
[Round "05"]
[TimeControl "180+2"]
[Date "2023.04.18"]
[WhiteClock "0:01:40"]
[BlackClock "0:00:01"]

1. d4 {[%clk 0:03:00]}  Nf6 {[%clk 0:02:57]} 2. c4 {[%clk 0:03:00]}  e6 {[%clk 0:02:57]} 3. Nc3 {[%clk 0:03:00]}  Bb4 {[%clk 0:02:57]} 4. g3 {[%clk 0:03:01]}  Nc6 {[%clk 0:02:23]} 5. Nf3 {[%clk 0:02:57]}  Qe7 {[%clk 0:02:17]} 6. Bg2 {[%clk 0:02:57]}  O-O {[%clk 0:02:10]} 7. O-O {[%clk 0:02:57]}  d5 {[%clk 0:01:50]} 8. Qb3 {[%clk 0:02:38]}  Rd8 {[%clk 0:01:48]} 9. Rd1 {[%clk 0:02:36]}  Na5 {[%clk 0:01:45]} 10. Qc2 {[%clk 0:02:30]}  Nxc4 {[%clk 0:01:41]} 11. a3 {[%clk 0:02:27]}  Bd6 {[%clk 0:01:24]} 12. Nb5 {[%clk 0:02:21]}  c6 {[%clk 0:01:22]} 13. Nxd6 {[%clk 0:02:20]}  Nxd6 {[%clk 0:01:22]} 14. Ne5 {[%clk 0:02:19]}  a5 {[%clk 0:01:19]} 15. a4 {[%clk 0:02:20]}  Nd7 {[%clk 0:01:10]} 16. b3 {[%clk 0:02:17]}  f6 {[%clk 0:00:48]} 17. Nd3 {[%clk 0:02:16]}  Qf7 {[%clk 0:00:33]} 18. Ba3 {[%clk 0:02:15]}  Nf5 {[%clk 0:00:33]} 19. Nc5 {[%clk 0:02:11]}  Nxc5 {[%clk 0:00:18]} 20. Bxc5 {[%clk 0:02:12]}  Nd6 {[%clk 0:00:17]} 21. Rac1 {[%clk 0:02:10]}  Ne8 {[%clk 0:00:14]} 22. e4 {[%clk 0:02:09]}  Nc7 {[%clk 0:00:14]} 23. Re1 {[%clk 0:02:02]}  Bd7 {[%clk 0:00:14]} 24. Bb6 {[%clk 0:01:59]}  Rdc8 {[%clk 0:00:12]} 25. Qd2 {[%clk 0:01:59]}  Ne8 {[%clk 0:00:09]} 26. Bxa5 {[%clk 0:01:59]}  Nd6 {[%clk 0:00:09]} 27. e5 {[%clk 0:01:55]}  fxe5 {[%clk 0:00:08]} 28. Rxe5 {[%clk 0:01:56]}  Nf5 {[%clk 0:00:08]} 29. Bc3 {[%clk 0:01:54]}  Qf6 {[%clk 0:00:07]} 30. Rce1 {[%clk 0:01:54]}  Rf8 {[%clk 0:00:06]} 31. f4 {[%clk 0:01:51]}  Rae8 {[%clk 0:00:05]} 32. Qd3 {[%clk 0:01:46]}  h5 {[%clk 0:00:05]} 33. Bh3 {[%clk 0:01:44]}  h4 {[%clk 0:00:05]} 34. Bb4 {[%clk 0:01:41]}  Rf7 {[%clk 0:00:04]} 35. Bxf5 {[%clk 0:01:41]}  exf5 {[%clk 0:00:01]} 36. Rxe8+ {[%clk 0:01:40]} 1-0


[Site "https://www.chess.com"]

[Event "Titled Tuesday Blitz April 18 Early 2023"]
[White "Ezat, Mohamed"]
[Black "Vivas Zamora, Fabian Ernesto"]
[WhiteFideId "10600906"]
[BlackFideId "3902480"]
[WhiteElo "2386"]
[BlackElo "2262"]
[Result "1-0"]
[Round "05"]
[TimeControl "180+2"]
[Date "2023.04.18"]
[WhiteClock "0:00:30"]
[BlackClock "0:00:01"]

1. d4 {[%clk 0:02:51]}  Nf6 {[%clk 0:02:58]} 2. c4 {[%clk 0:02:51]}  g6 {[%clk 0:02:57]} 3. Nc3 {[%clk 0:02:50]}  d5 {[%clk 0:02:57]} 4. Bg5 {[%clk 0:02:48]}  Bg7 {[%clk 0:02:57]} 5. Bxf6 {[%clk 0:02:48]}  Bxf6 {[%clk 0:02:58]} 6. cxd5 {[%clk 0:02:48]}  c6 {[%clk 0:02:52]} 7. e3 {[%clk 0:02:46]}  cxd5 {[%clk 0:02:49]} 8. h4 {[%clk 0:02:46]}  h5 {[%clk 0:02:46]} 9. Qb3 {[%clk 0:02:43]}  e6 {[%clk 0:02:42]} 10. g3 {[%clk 0:02:40]}  O-O {[%clk 0:02:40]} 11. Nf3 {[%clk 0:02:37]}  Qa5 {[%clk 0:01:54]} 12. Bd3 {[%clk 0:02:35]}  b6 {[%clk 0:01:54]} 13. Qc2 {[%clk 0:02:34]}  Kg7 {[%clk 0:01:48]} 14. O-O {[%clk 0:02:29]}  Ba6 {[%clk 0:01:48]} 15. Rfc1 {[%clk 0:02:15]}  Bxd3 {[%clk 0:01:45]} 16. Qxd3 {[%clk 0:02:15]}  Nc6 {[%clk 0:01:29]} 17. a3 {[%clk 0:02:13]}  b5 {[%clk 0:00:58]} 18. Qxb5 {[%clk 0:01:58]}  Qxb5 {[%clk 0:00:56]} 19. Nxb5 {[%clk 0:01:58]}  Na5 {[%clk 0:00:55]} 20. Rc7 {[%clk 0:01:50]}  a6 {[%clk 0:00:49]} 21. Nd6 {[%clk 0:01:44]}  Nb3 {[%clk 0:00:29]} 22. Rd1 {[%clk 0:01:42]}  Rab8 {[%clk 0:00:28]} 23. Ne5 {[%clk 0:01:31]}  Bxe5 {[%clk 0:00:20]} 24. dxe5 {[%clk 0:01:31]}  a5 {[%clk 0:00:14]} 25. Rd3 {[%clk 0:01:22]}  a4 {[%clk 0:00:14]} 26. e4 {[%clk 0:01:16]}  dxe4 {[%clk 0:00:04]} 27. Nxe4 {[%clk 0:01:15]}  Nc1 {[%clk 0:00:02]} 28. Rd2 {[%clk 0:01:06]}  Nb3 {[%clk 0:00:02]} 29. Rdd7 {[%clk 0:01:05]}  Rbc8 {[%clk 0:00:02]} 30. Rxf7+ {[%clk 0:01:03]}  Rxf7 {[%clk 0:00:02]} 31. Rxc8 {[%clk 0:01:04]}  Rd7 {[%clk 0:00:01]} 32. Ng5 {[%clk 0:00:53]}  Rd5 {[%clk 0:00:01]} 33. Nxe6+ {[%clk 0:00:42]}  Kf7 {[%clk 0:00:02]} 34. Ng5+ {[%clk 0:00:39]}  Ke7 {[%clk 0:00:02]} 35. e6 {[%clk 0:00:35]}  Nd4 {[%clk 0:00:01]} 36. Rc7+ {[%clk 0:00:35]}  Ke8 {[%clk 0:00:01]} 37. Ra7 {[%clk 0:00:30]} 1-0


[Site "https://www.chess.com"]